Workbook

Sheet 심의안건(2회)
A1: 제2회 예천군 보조금심의위원회 심의 조서
K2: (단위 : 천원)
A3: 부 서 | B3: 보 조 사 업 자 | C3: 보 조 사 업 명 | D3: 과목명 | E3: 사 업 내 용 | F3: 2015년 지원액 | G3: 계 | H3: 보조금 | I3: 자부담 | J3: 1차(해당부서) | K3: 2차(예산부서) | L3: 3차(위원회)
C4: 181 | F4: =SUM(F5,F13,F20,F24,F45,F49,F113,F133,F140,F149,F153,F156) -> 8,308,630 | G4: 20,574,609 | H4: 12,191,903 | I4: 8,382,706 | J4: 12,191,903 | K4: 12,191,903 | L4: 12,191,903
A5: 주민복지과 소계 | C5: =SUBTOTAL(103,C6:C12) -> 7 | F5: =SUBTOTAL(9,F6:F12) -> 33,870 | G5: 47,270 | H5: 44,870 | I5: 2,400 | J5: 44,870 | K5: 44,870 | L5: 44,870
A6: 주민복지과 | B6: 극락마을 | C6: 장애인생활시설 서비스지원사업 | D6: 사회복지사업보조 | E6: 캠프활동지원비 : 3,956 의약품비 : 1,220 건강검진비 : 1,830 부 식 비 : 915 | F6: 7,930 | G6: =SUM(H6:I6) -> 7,930 | H6: 7,930 | J6: 7,930 | K6: 7,930 | L6: 7,930
A7: 주민복지과 | B7: 예천사랑마을 | C7: 장애인생활시설 서비스지원사업 | D7: 사회복지사업보조 | E7: 캠프활동지원비 : 2,470 의약품비 : 760 건강검진비 : 1,140 부 식 비 : 570 | F7: 4,940 | G7: =SUM(H7:I7) -> 4,940 | H7: 4,940 | J7: 4,940 | K7: 4,940 | L7: 4,940
A8: 주민복지과 | B8: 극락마을 | C8: 장애인생활시설이용자 인권교육 | D8: 사회복지사업보조 | E8: 인권교육 : 1,800 | F8: 500 | G8: =SUM(H8:I8) -> 1,800 | H8: 500 | I8: 1,300 | J8: 500 | K8: 500 | L8: 500
A9: 주민복지과 | B9: 예천사랑마을 | C9: 장애인생활시설이용자 인권교육 | D9: 사회복지사업보조 | E9: 인권교육 : 600 | F9: 500 | G9: =SUM(H9:I9) -> 600 | H9: 500 | I9: 100 | J9: 500 | K9: 500 | L9: 500
A10: 주민복지과 | B10: 경북예천지역자활센터 | C10: 자활 활성화사업비 지원 | D10: 사회복지사업보조 | E10: 운 영 비 : 12,270 비품구입비 : 4,800 사 업 비 : 7,930 | F10: 15,000 | G10: 25,000 | H10: 25,000 | J10: 25,000 | K10: 25,000 | L10: 25,000
A11: 주민복지과 | B11: 경북국학원 | C11: 학교폭력예방을 위한 청소년 교육 | D11: 사회복지사업보조 | E11: 강사수당 : 5,000 현 수 막 : 200 교제제작비 : 400 기타 사무용품 등 : 400 | F11: 5,000 | G11: 6,000 | H11: 5,000 | I11: 1,000 | J11: 5,000 | K11: 5,000 | L11: 5,000
A12: 주민복지과 | B12: 바프롤로사말비 | C12: 결혼이민여성 교육지원 | D12: 사회복지사업보조 | E12: 결혼이민여성 대학등록금지원 : 1,000 | G12: 1,000 | H12: 1,000 | J12: 1,000 | K12: 1,000 | L12: 1,000
A13: 총무과 소계 | C13: =SUBTOTAL(103,C14:C19) -> 6 | F13: =SUBTOTAL(9,F14:F19) -> 197,838 | G13: =SUM(G14:G19) -> 194,430 | H13: 187,580 | I13: 6,850 | J13: 187,580 | K13: 187,580 | L13: 187,580
A14: 총무과 | B14: 민주평화통일자문회의 예천군협의회 | C14: 민주평화자문회의 평화통일 역량 강화활동 지원사업 | D14: 민간단체법정운영비보조 | E14: 청소년 통일공감사업 : 3,000 일반통일활동 통일공감사업 : 3,000 자문위원 역량강화사업 : 14,000 자부담 : 6,850 | F14: 20,000 | G14: =SUM(H14:I14) -> 26,850 | H14: 20,000 | I14: 6,850 | J14: 20,000 | K14: 20,000 | L14: 20,000
A15: 총무과 | B15: 예천농산물축제추진위원회 | C15: 군민의날 기념행사 지원 | D15: 민간행사사업보조 | E15: 기념품 : 6,000 만 찬 : 7,500 공연비 : 4,000 기 타 : 2,500 | F15: 20,000 | G15: 20,000 | H15: 20,000 | J15: 20,000 | K15: 20,000 | L15: 20,000
A16: 총무과 | B16: 예천농산물축제추진위원회 | C16: 군민제전 도시민 초청행사 | D16: 민간행사사업보조 | E16: 버스임차 : 7,000 농산물쿠폰 : 3,000 | F16: 10,000 | G16: 10,000 | H16: 10,000 | J16: 10,000 | K16: 10,000 | L16: 10,000
A17: 총무과 | B17: 예천청년회의소 | C17: 새해 해맞이 행사 | D17: 민간행사사업보조 | E17: 기 념 품 : 15,000 광 고 료 : 2,000 이 벤 트 : 2,000 잡 자 재 : 6,000 | F17: 25,000 | G17: 25,000 | H17: 25,000 | J17: 25,000 | K17: 25,000 | L17: 25,000
A18: 총무과 | B18: 바르게살기운동예천군협의회 | C18: 독서골든벨 대회 개최 | D18: 민간경상사업보조 | E18: 진 행 비 : 6,300 재 료 비 : 2,240 행사운영비 : 1,000 기타운영비 : 460 | F18: 10,000 | G18: 10,000 | H18: 10,000 | J18: 10,000 | K18: 10,000 | L18: 10,000
A19: 총무과 | B19: 대구경북영어마을 | C19: 초등학생 영어체험학습 지원 | D19: 민간경상사업보조 | E19: 영어체험학습지원비(230명) : 102,580 | F19: 112,838 | G19: 102,580 | H19: 102,580 | J19: 102,580 | K19: 102,580 | L19: 102,580
A20: 종합민원과 소계 | C20: 3 | F20: 10,500 | G20: 10,500 | H20: 10,500 | I20: 0 | J20: 10,500 | K20: 10,500 | L20: 10,500
A21: 종합민원과 | B21: (사)한국외식업중앙회경상북도지회예천군지부 | C21: 식중독예방을 위한 손씻는시설 설치 지원 | D21: 민간자본사업보조 | E21: 손씻는 시설 설치(5개소) : 6,500 | F21: 6,500 | G21: 6,500 | H21: 6,500 | J21: 6,500 | K21: 6,500 | L21: 6,500
A22: 종합민원과 | B22: (사)한국외식업중앙회경상북도지회예천군지부 | C22: 식중독예방진단서비스사업 참여업체 주방기구 소독기 지원 | D22: 민간자본사업보조 | E22: 주방기구 소독기 설치(5개소) : 2,500 | F22: 2,500 | G22: 2,500 | H22: 2,500 | J22: 2,500 | K22: 2,500 | L22: 2,500
A23: 종합민원과 | B23: (사)한국외식업중앙회경상북도지회예천군지부 | C23: 식중독지수 알림 전광판 설치 지원 | D23: 민간자본사업보조 | E23: 식중독지수알림 전광판 설치(5개소) : 1,500 | F23: 1,500 | G23: 1,500 | H23: 1,500 | J23: 1,500 | K23: 1,500 | L23: 1,500
A24: 문화관광과 소계 | C24: =SUBTOTAL(103,C25:C44) -> 20 | F24: =SUBTOTAL(9,F25:F44) -> 1,161,000 | G24: 2,148,050 | H24: 2,039,600 | I24: 108,450 | J24: 2,039,600 | K24: 2,039,600 | L24: 2,039,600
A25: 문화관광과 | B25: 예천문화원 | C25: 아뉴스오페라단 공연 지원 | D25: 민간경상사업보조 | E25: 의상제작(80명) : 2,000 무대제작, 조명, 음향 임차 : 3,000 홍보(포스터, 팜플렛, 영상물 제작) : 3,000 대 관 료 : 1,000 출 연 료 : 6,000 반주, 편곡, 메이크업 등 : 5,000 | F25: 5,000 | G25: =SUM(H25:I25) -> 20,000 | H25: 5,000 | I25: 15,000 | J25: 5,000 | K25: 5,000 | L25: 5,000
A26: 문화관광과 | B26: 예천문화원(예천한시회) | C26: 제11회 예천전국한시백일장 지원 | D26: 민간경상사업보조 | E26: 인쇄비, 현수막 : 2,350 시 상 금 : 9,000 수상작품 한시집 발간 : 5,000 당일 식대, 간식 : 2,500 관내투어 버스임차 : 500 심사비, 우편발솔, 사무용품 등 : 2,650 | F26: 20,000 | G26: 22,000 | H26: 20,000 | I26: 2,000 | J26: 20,000 | K26: 20,000 | L26: 20,000
A27: 문화관광과 | B27: 예천문화원(예천한시회) | C27: 한시회 시집발간 지원 | D27: 민간경상사업보조 | E27: 한시집 발간(200여권) : 1,200 | F27: 1,000 | G27: 1,200 | H27: 1,000 | I27: 200 | J27: 1,000 | K27: 1,000 | L27: 1,000
A28: 문화관광과 | B28: (사)한국예총예천지회 | C28: 제5회 예천예술제 지원 | D28: 민간경상사업보조 | E28: 홍보비(현수막, 언론 등) : 2,700 팜플렛 및 초청장 : 1,300 개막식 공연 : 4,000 음향 및 조명 : 3,000 5개 지부 행사비 : 8,000 천막임차, 기타 : 4,000 | F28: 23,000 | G28: 23,000 | H28: 23,000 | J28: 23,000 | K28: 23,000 | L28: 23,000
A29: 문화관광과 | B29: (사)한국예총예천지회 | C29: 예총예천지회 화보집 발간 | D29: 민간경상사업보조 | E29: 책자발간(1,000부) : 8,000 봉 투 : 400 편집비 : 1,000 우편발송(300부) : 600 | F29: 10,000 | G29: 10,000 | H29: 10,000 | J29: 10,000 | K29: 10,000 | L29: 10,000
A30: 문화관광과 | B30: (사)한국예총예천지회 ((사)한국연예예술인총연합회 예천지회) | C30: 제8회 예천군민노래자랑 지원 | D30: 민간경상사업보조 | E30: 음향 대여 : 1,000 홍보(현수막, 언론 등) : 4,300 초대가수, 사회자 : 2,700 시 상 금 : 2,000 인쇄비 및 기타 : 1,000 | F30: 10,000 | G30: 11,000 | H30: 10,000 | I30: 1,000 | J30: 10,000 | K30: 10,000 | L30: 10,000
A31: 문화관광과 | B31: (사)한국예총예천지회 ((사)한국사진작가협회 예천지부) | C31: 예천관광 사진공모전 지원 | D31: 민간경상사업보조 | E31: 인쇄 및 우편료 : 1,000 협회인준 및 광고료 : 4,000 입상작 시상금 : 7,500 작품집 제작 및 배부 : 7,000 심사위원 수당, 사무용품 등 : 2,500 | G31: 22,000 | H31: 20,000 | I31: 2,000 | J31: 20,000 | K31: 20,000 | L31: 20,000
A32: 문화관광과 | B32: (사)한국예총예천지회 | C32: 우리 민요활동 지원 | D32: 민간경상사업보조 | E32: 청소년 우리춤 우리소리 한마당 : 2,000 실버 우리춤 우리소리 한마당 : 3,000 지역민과 함께하는 국악한마당 4,000 홍보(현수막, 언론, 팜플렛 등) : 4,000 음향, 무대, 조명, 천막 등 : 3,500 | G32: 16,500 | H32: 15,000 | I32: 1,500 | J32: 15,000 | K32: 15,000 | L32: 15,000
A33: 문화관광과 | B33: (사)한국예총예천지회 ((사)한국미술협회 예천지부) | C33: 미술협회 예천지회 전시회 지원 순수미술 작가회 전시회 지원 | D33: 민간경상사업보조 | E33: 미술협회 전시회 지원 - 도록제작 : 3,000 - 전시오픈 준비 : 1,000 공감작가회 전시회 지원 - 도록제작 : 2,000 - 전시오픈 준비 : 500 | F33: 5,000 | G33: 6,500 | H33: 5,000 | I33: 1,500 | J33: 5,000 | K33: 5,000 | L33: 5,000
A34: 문화관광과 | B34: (사)한국예총예천지회 (예천서예인연합회) | C34: 예천서예인연합회 회원전 지원 | D34: 민간경상사업보조 | E34: 작품표구(100점) : 4,000 작품 도록제작 : 5,000 대관료 등 : 3,000 | F34: 7,000 | G34: 12,000 | H34: 7,000 | I34: 5,000 | J34: 7,000 | K34: 7,000 | L34: 7,000
A35: 문화관광과 | B35: 예천흑응풍물단 | C35: 도 풍물경연대회 출연단체 지원 | D35: 민간경상사업보조 | E35: 대회 참가단원수송 차량임차(2대) : 1,000 참가단원 식대 : 900 공연용 고깔 구입 : 350 | F35: 2,000 | G35: 2,250 | H35: 2,000 | I35: 250 | J35: 2,000 | K35: 2,000 | L35: 2,000
A36: 문화관광과 | B36: 초정서예연구원 | C36: 세계저명작가전시회 지원 | D36: 민간경상사업보조 | E36: 국제작가초청준비 방문 : 4,000 표구, 도록발간 : 14,000 초청작가 여비 : 8,400 운영위원 수당, 행사지원 인부 : 3,200 식대 및 다과 : 6,000 홍보, 작품 운송, 설치, 기타 등 : 4,400 | F36: 40,000 | G36: 40,000 | H36: 40,000 | J36: 40,000 | K36: 40,000 | L36: 40,000
A37: 문화관광과 | B37: 초정서예연구원 | C37: 전국서예(휘호)대전지원 | D37: 민간경상사업보조 | E37: 시 상 금 : 31,900 표구 및 도록비 : 30,000 인쇄, 우편발송비 : 10,000 천막, 현수막 설치 : 11,700 심사위원, 운영위원 수당 : 10,000 기념품, 식비, 다과비 : 18,000 행사지원 인부 및 환경정비 : 12,000 행사용품, 차량지원, 기타 등 : 26,400 | F37: 150,000 | G37: 150,000 | H37: 150,000 | J37: 150,000 | K37: 150,000 | L37: 150,000
A38: 문화관광과 | B38: 조인선 | C38: 전통한옥 개보수 사업 | D38: 민간자본사업보조 | E38: 전통한옥 개보수 사업 설치 : 100,000 | G38: 100,000 | H38: 80,000 | I38: 20,000 | J38: 80,000 | K38: 80,000 | L38: 80,000
A39: 문화관광과 | B39: 대한불교조계종 용문사 | C39: 예천 용문사 대장전 방재시설 설치 및 지원(저수조 증축) | D39: 민간자본사업보조 | E39: 저수조 용량 220톤 증축 : 89,600 | G39: 89,600 | H39: 89,600 | I39: 0 | J39: 89,600 | K39: 89,600 | L39: 89,600
A40: 문화관광과 | B40: 대한불교조계종 용문사 | C40: 예천 용문사 대장전 요사채 건립 | D40: 민간자본사업보조 | E40: 요사채 150㎡ 건립 : 700,000 | G40: 700,000 | H40: 700,000 | J40: 700,000 | K40: 700,000 | L40: 700,000
A41: 문화관광과 | B41: 대한불교조계종 명봉사 | C41: 예천 명봉사 보호각 및 축대 보수 | D41: 민간자본사업보조 | E41: 보호각 지붕 5㎡ 보수 및 축대 20m 보수 : 60,000 | G41: 60,000 | H41: 60,000 | J41: 60,000 | K41: 60,000 | L41: 60,000
A42: 문화관광과 | B42: 대한불교조계종 보문사 | C42: 보문사 공양간 건립 | D42: 민간자본사업보조 | E42: 공양간 150㎡ 신축 : 200,000 | F42: 250,000 | G42: 200,000 | H42: 200,000 | J42: 200,000 | K42: 200,000 | L42: 200,000
A43: 문화관광과 | B43: 대한불교조계종 장안사 | C43: 장안사 영산전 개보수 및 공양간 정비 | D43: 민간자본사업보조 | E43: 영산전 개보수 150㎡ 및 공양간 정비 : 240,000 | G43: 300,000 | H43: 240,000 | I43: 60,000 | J43: 240,000 | K43: 240,000 | L43: 240,000
A44: 문화관광과 | B44: 초정서예연구원 | C44: 대한민국 국새 인학 예술관 건립 | D44: 민간자본사업보조 | E44: 예술관 건립 138.94㎡ (지상2층 전통한옥구조) : 362,000 | F44: 638,000 | G44: =SUM(H44:I44) -> 362,000 | H44: 362,000 | J44: 362,000 | K44: 362,000 | L44: 362,000
A45: 환경관리과 소계 | C45: =SUBTOTAL(103,C46:C48) -> 3 | F45: =SUBTOTAL(9,F46:F48) -> 248,009 | G45: 165,200 | H45: 145,600 | I45: 19,600 | J45: 145,600 | K45: 145,600 | L45: 145,600
A46: 환경관리과 | B46: 용문사 | C46: 개인하수처리시설 지원사업 (용문사) | D46: 민간자본사업보조 | E46: 오수처리시설 설치 : 98,000 | F46: 153,600 | G46: =SUM(H46:I46) -> 98,000 | H46: 78,400 | I46: 19,600 | J46: 78,400 | K46: 78,400 | L46: 78,400
A47: 환경관리과 | B47: 김동국 외 7명 | C47: 농촌 빈집정비 지원(슬레이트) | D47: 민간자본사업보조 | E47: 빈집정비(슬레이트)8가구 : 48,000 | F47: 68,114 | G47: =SUM(H47:I47) -> 48,000 | H47: 48,000 | I47: 0 | J47: 48,000 | K47: 48,000 | L47: 48,000
A48: 환경관리과 | B48: 박병근 외 32명 | C48: 농촌 빈집정비 지원(일반) | D48: 민간자본사업보조 | E48: 빈집정비(32가구) : 19,200 | F48: 26,295 | G48: =SUM(H48:I48) -> 19,200 | H48: 19,200 | I48: 0 | J48: 19,200 | K48: 19,200 | L48: 19,200
A49: 농정과 소계 | C49: 63 | F49: =SUM(F50:F112) -> 5,016,786 | G49: 15,850,462 | H49: 7,906,781 | I49: 7,943,681 | J49: 7,906,781 | K49: 7,906,781 | L49: 7,906,781
A50: 농정과 | B50: 경북대학교 산학협력단 | C50: 농어촌 현장포럼 지원 | D50: 민간경상사업보조 | E50: 22,000,000원 * 1식 | F50: 22,000 | G50: =SUM(H50:I50) -> 22,000 | H50: 22,000 | J50: 22,000 | K50: 22,000 | L50: 22,000
A51: 농정과 | B51: 전재홍 외 7명 | C51: 결혼이민자 농가소득 증진 지원 | D51: 민간자본사업보조 | E51: 10,000,000원*8명*80% | G51: 80,000 | H51: 64,000 | I51: 16,000 | J51: 64,000 | K51: 64,000 | L51: 64,000
A52: 농정과 | B52: 보문약곡단지(김태동) 외 4개소 | C52: 토종곡물 재배단지 지원 | D52: 민간자본사업보조 | E52: 1,000,000원*24ha*70% | F52: 11,900 | G52: 24,000 | H52: 16,800 | I52: 7,200 | J52: 16,800 | K52: 16,800 | L52: 16,800
A53: 농정과 | B53: 내신담암고품질쌀작목회 | C53: 벼 직파 재배단지 생산비 지원 | D53: 민간자본사업보조 | E53: 600,000원 * 58.45ha * 50% | F53: 15,300 | G53: 35,070 | H53: 17,535 | I53: 17,535 | J53: 17,535 | K53: 17,535 | L53: 17,535
A54: 농정과 | B54: 청복리 콩재배단지 외 1개소 | C54: 콩.맥류단지 지원 | D54: 민간자본사업보조 | E54: 20,000,000원 * 2개소 * 70% | F54: 34,166 | G54: 48,124 | H54: 28,000 | I54: 20,124 | J54: 28,000 | K54: 28,000 | L54: 28,000
A55: 농정과 | B55: 호명내신담암고품질쌀작목회 | C55: 벼농사 우수경영체 일관 기계화 작업 지원 | D55: 민간자본사업보조 | E55: 300,000,000원 * 1개소 * 50% | F55: 275,000 | G55: 343,480 | H55: 150,000 | I55: 193,480 | J55: 150,000 | K55: 150,000 | L55: 150,000
A56: 농정과 | B56: 은산육묘공장 외 4개소 | C56: 벼 육묘공장(대형) 개보수 지원 | D56: 민간자본사업보조 | E56: 46,600,000원*1개소*50% | F56: 37,321 | G56: 46,600 | H56: 23,300 | I56: 23,300 | J56: 23,300 | K56: 23,300 | L56: 23,300
A57: 농정과 | B57: 농협중앙회 경북지역본부(예천군농정지원단) 외 1개소 | C57: 유기질비료 지원 | D57: 민간자본사업보조 | E57: 1,440,270,000원 * 1식 | F57: 1,445,042 | G57: 4,428,695 | H57: 1,440,270 | I57: 2,988,425 | J57: 1,440,270 | K57: 1,440,270 | L57: 1,440,270
A58: 농정과 | B58: 예천군농협쌀조합공동사업법인(대표 김광수) | C58: 통합 브랜드쌀 포장재 지원 | D58: 민간자본사업보조 | E58: 400원 * 90,000매 * 50% | F58: 20,000 | G58: 36,000 | H58: 18,000 | I58: 18,000 | J58: 18,000 | K58: 18,000 | L58: 18,000
A59: 농정과 | B59: 예천군농협쌀조합공동사업법인(대표 김광수) | C59: 통합 브랜드쌀 홍보용 택배비 지원 | D59: 민간자본사업보조 | E59: 3,500원 * 5,400포대 * 50% | F59: 10,500 | G59: 18,900 | H59: 9,450 | I59: 9,450 | J59: 9,450 | K59: 9,450 | L59: 9,450
A60: 농정과 | B60: 예천군농협쌀조합공동사업법인(대표 김광수) | C60: 통합 브랜드쌀 DNA 검사 수수료 | D60: 민간자본사업보조 | E60: 200,000원 * 18회 * 50% | F60: 2,000 | G60: 3,600 | H60: 1,800 | I60: 1,800 | J60: 1,800 | K60: 1,800 | L60: 1,800
A61: 농정과 | B61: 예천군농협쌀조합공동사업법인(대표 김광수) | C61: 고품질 쌀 브랜드 육성 (교육홍보컨설팅) | D61: 민간경상사업보조 | E61: 50,000,000원 * 1식 * 60% | F61: 50 | G61: 50,000 | H61: 30,000 | I61: 20,000 | J61: 30,000 | K61: 30,000 | L61: 30,000
A62: 농정과 | B62: 농협중앙회 예천군지부(지부장 성희제) | C62: 토양개량제 공급 | D62: 민간자본사업보조 | E62: 849,058,000원*1식 | F62: 1,002,540 | G62: 849,058 | H62: 849,058 | I62: 0 | J62: 849,058 | K62: 849,058 | L62: 849,058
A63: 농정과 | B63: 농협중앙회 예천군지부(지부장 성희제) | C63: 공공비축미곡 매입용 포장재 지원 | D63: 민간자본사업보조 | E63: 900원*140,000매 | F63: 137,760 | G63: 126,000 | H63: 126,000 | I63: 0 | J63: 126,000 | K63: 126,000 | L63: 126,000
A64: 농정과 | B64: 이선진 외 57명 | C64: 공공비축미 대형 포대벼 매입 톤백저울 지원 | D64: 민간자본사업보조 | E64: 1,000,000원*58대*50% | F64: 29,500 | G64: 58,000 | H64: 29,000 | I64: 29,000 | J64: 29,000 | K64: 29,000 | L64: 29,000
A65: 농정과 | B65: 윤형갑 외 12명 | C65: 공공비축미 대형 포대벼 매입 파레트 지원 | D65: 민간자본사업보조 | E65: 50,000원*2,700개*50% | F65: 16,000 | G65: 135,000 | H65: 67,500 | I65: 67,500 | J65: 67,500 | K65: 67,500 | L65: 67,500
A66: 농정과 | B66: 신진구 외 21명 | C66: 곡물건조기 지원(대형) | D66: 민간자본사업보조 | E66: 10,000,000원 × 22대 × 50% | F66: 0 | G66: 220,000 | H66: 110,000 | I66: 110,000 | J66: 110,000 | K66: 110,000 | L66: 110,000
A67: 농정과 | B67: 우재연 외 23명 | C67: 곡물건조기 지원(소형) | D67: 민간자본사업보조 | E67: 4,500,000원 × 24대 × 50% | F67: 0 | G67: 108,000 | H67: 54,000 | I67: 54,000 | J67: 54,000 | K67: 54,000 | L67: 54,000
A68: 농정과 | B68: 정중수 외 17명 | C68: 육묘용 파종기 지원 | D68: 민간자본사업보조 | E68: 3,000,000원 × 18대 × 50% | F68: 0 | G68: 54,000 | H68: 27,000 | I68: 27,000 | J68: 27,000 | K68: 27,000 | L68: 27,000
A69: 농정과 | B69: 정응수 외 7명 | C69: 벼 종자 소독기 지원 | D69: 민간자본사업보조 | E69: 3,000,000원 × 8대 × 50% | F69: 0 | G69: 24,000 | H69: 12,000 | I69: 12,000 | J69: 12,000 | K69: 12,000 | L69: 12,000
A70: 농정과 | B70: 박승철 외 359명 | C70: 중소형 농기계 지원 | D70: 민간자본사업보조 | E70: 2,000,000원 × 360대 × 50% | F70: 0 | G70: 720,000 | H70: 360,000 | I70: 360,000 | J70: 360,000 | K70: 360,000 | L70: 360,000
A71: 농정과 | B71: 유천 고림 쌀작목반외 6명 | C71: 친환경농법 종합지원(우렁이 등) | D71: 민간자본사업보조 | E71: 1,000,000원 × 22ha × 70% | F71: 18,200 | G71: 22,000 | H71: 15,400 | I71: 6,600 | J71: 15,400 | K71: 15,400 | L71: 15,400
A72: 농정과 | B72: 예천 상동 쌀작목반외 24명 | C72: 친환경 인증단지(우렁이농법)지원 | D72: 민간자본사업보조 | E72: 1,000,000원 × 361ha × 50% | F72: 219,500 | G72: 361,000 | H72: 180,500 | I72: 180,500 | J72: 180,500 | K72: 180,500 | L72: 180,500
A73: 농정과 | B73: 예천 석정 쌀작목반외 26명 | C73: 친환경 실천단지(우렁이농법)지원 | D73: 민간자본사업보조 | E73: 300,000원 × 635ha × 50% | F73: 68,850 | G73: 181,500 | H73: 90,750 | I73: 90,750 | J73: 90,750 | K73: 90,750 | L73: 90,750
A74: 농정과 | B74: 용문 김원덕외 14명 | C74: 유기농업자재지원사업(유기농자재) | D74: 민간자본사업보조 | E74: 689,200원 × 32ha × 50% | F74: 9,640 | G74: 21,554 | H74: 10,777 | I74: 10,777 | J74: 10,777 | K74: 10,777 | L74: 10,777
A75: 농정과 | B75: 농협중앙회예천지점장 | C75: 유기농업자재지원사업(녹비) | D75: 민간자본사업보조 | E75: 306,000원 × 24ha × 50% | F75: 3,973 | G75: 7,946 | H75: 3,973 | I75: 3,973 | J75: 3,973 | K75: 3,973 | L75: 3,973
A76: 농정과 | B76: 감천 김구일외 18명 | C76: 친환경 밭인증농가 농자재 지원 | D76: 민간자본사업보조 | E76: 500,000원 × 16ha × 50% | F76: 5,625 | G76: =SUM(H76:I76) -> 8,000 | H76: 4,000 | I76: 4,000 | J76: 4,000 | K76: 4,000 | L76: 4,000
A77: 농정과 | B77: 예천농산물축제추진위원회(대표 안승만) | C77: 농산물축제 추진 행사비 지원 | D77: 민간행사사업보조 | E77: 300,000,000원 * 1회 | F77: 300,000 | G77: 300,000 | H77: 300,000 | J77: 300,000 | K77: 300,000 | L77: 300,000
A78: 농정과 | B78: 예천청결고추영농조합법인(대표 박규형) | C78: 농식품 전시박람회 참가지원 | D78: 민간경상사업보조 | E78: 2,000,000원 * 1개소 | F78: 3,793 | G78: 2,000 | H78: 2,000 | J78: 2,000 | K78: 2,000 | L78: 2,000
A79: 농정과 | B79: 예천군농특산물홍보판매단(대표 박영돈) | C79: 우수농특산물 포장재 개선 지원 | D79: 민간자본사업보조 | E79: 6,000,000원 * 12종 | G79: 72,000 | H79: 50,400 | I79: 21,600 | J79: 50,400 | K79: 50,400 | L79: 50,400
A80: 농정과 | B80: 농협중앙회 예천군연합사업단(단장 박병준) | C80: 농산물 출하농가 물류비 지원 | D80: 민간자본사업보조 | E80: 60,000,000원*1식 | F80: 26,330 | G80: 60,000 | H80: 60,000 | J80: 60,000 | K80: 60,000 | L80: 60,000
A81: 농정과 | B81: 농협중앙회 예천군연합사업단(단장 박병준) | C81: 농산물 출하농가 선별비 지원 | D81: 민간자본사업보조 | E81: 120,000원*5명*20일 | F81: 130,215 | G81: 120,000 | H81: 120,000 | J81: 120,000 | K81: 120,000 | L81: 120,000
A82: 농정과 | B82: 농협중앙회 예천군연합사업단(단장 박병준) | C82: 농산물 출하농가 포장재 지원 | D82: 민간자본사업보조 | E82: 1,200원*300,000매 | F82: 69,281 | G82: 360,000 | H82: 180,000 | I82: 180,000 | J82: 180,000 | K82: 180,000 | L82: 180,000
A83: 농정과 | B83: 대구경북능금농협 예천경제사업장 (장장 정해윤) | C83: 경북통합과실브랜드 육성지원 | D83: 민간자본사업보조 | E83: 35,000,000원*1식 | F83: 36,000 | G83: 35,000 | H83: 28,000 | I83: 7,000 | J83: 28,000 | K83: 28,000 | L83: 28,000
A84: 농정과 | B84: 조인석 외 17명 | C84: 다목적 농가형 저온저장고 설치 (18동) | D84: 민간자본사업보조 | E84: 20,000,000원 * 18동 * 50% | F84: 160,000 | G84: 360,000 | H84: 180,000 | I84: 180,000 | J84: 180,000 | K84: 180,000 | L84: 180,000
A85: 농정과 | B85: 권근택 외 22명 | C85: 승용예초기, 다목적리프트기 지원 | D85: 민간자본사업보조 | E85: 9,000,000원 * 23대 * 50% | F85: 67,500 | G85: 207,000 | H85: 103,500 | I85: 103,500 | J85: 103,500 | K85: 103,500 | L85: 103,500
A86: 농정과 | B86: 최병혁 외 2명 | C86: 주행형분무기(보행형SS) | D86: 민간자본사업보조 | E86: 6,000,000원 * 3대 * 50% | F86: 9,000 | G86: 18,000 | H86: 9,000 | I86: 9,000 | J86: 9,000 | K86: 9,000 | L86: 9,000
A87: 농정과 | B87: 최덕성 외 19명 | C87: 과수전용방제기(SS기) 지원 | D87: 민간자본사업보조 | E87: 20,000,000원 * 20대 * 25% | F87: 110,000 | G87: 400,000 | H87: 100,000 | I87: 300,000 | J87: 100,000 | K87: 100,000 | L87: 100,000
A88: 농정과 | B88: 이상철 외 29명 | C88: 과수용 전동가위 지원 | D88: 민간자본사업보조 | E88: 1,600,000원 * 30대 * 25% | F88: 24,000 | G88: 48,000 | H88: 24,000 | I88: 24,000 | J88: 24,000 | K88: 24,000 | L88: 24,000
A89: 농정과 | B89: 이종환 외 13명 | C89: FTA대응대체 과수 명품화사업 | D89: 민간자본사업보조 | E89: 113,640,000원*50%(사업단가별) 사업비초과분 자부담 | F89: 35,000 | G89: 113,640 | H89: 40,000 | I89: 73,640 | J89: 40,000 | K89: 40,000 | L89: 40,000
A90: 농정과 | B90: 김정일 외 12명 | C90: FTA대응 대체과수 생산시설 현대화 사업(군) | D90: 민간자본사업보조 | E90: 86,540,000원*50%(사업단가별) 사업비초과분 자부담 | F90: 20,000 | G90: 86,540 | H90: 25,000 | I90: 61,540 | J90: 25,000 | K90: 25,000 | L90: 25,000
A91: 농정과 | B91: 신상범 외 9명 | C91: 화훼생산시설 경쟁력제고 지원 | D91: 민간자본사업보조 | E91: 100,000,000원*50%(사업단가별) 사업비초과분 자부담 | F91: 15,000 | G91: 100,000 | H91: 50,000 | I91: 50,000 | J91: 50,000 | K91: 50,000 | L91: 50,000
A92: 농정과 | B92: 권근택 외 156명 | C92: 친환경 사과적화제 지원 | D92: 민간자본사업보조 | E92: 66,784,000원*50%(제제 단가별) 사업비초과분 자부담 | F92: 20,000 | G92: 66,784 | H92: 9,660 | I92: 57,124 | J92: 9,660 | K92: 9,660 | L92: 9,660
A93: 농정과 | B93: 심재국 외 35명 | C93: 과수원 조류기피제 지원 | D93: 민간자본사업보조 | E93: 38,030,000원*50%(제제 단가별) 사업비초과분 자부담 | F93: 6,500 | G93: 38,030 | H93: 7,500 | I93: 30,530 | J93: 7,500 | K93: 7,500 | L93: 7,500
A94: 농정과 | B94: 조인석 외 144명 | C94: 과실 장기저장제 지원 | D94: 민간자본사업보조 | E94: 254,325,000원*50%(제제 단가별) 사업비초과분 자부담 | F94: 80,000 | G94: 254,325 | H94: 95,700 | I94: 158,625 | J94: 95,700 | K94: 95,700 | L94: 95,700
A95: 농정과 | B95: 예천농협 외 3개소 | C95: 생력 및 고품질 과수자재 지원사업 (과일봉지, 반사필름) | D95: 민간자본사업보조 | E95: 545,000,000원*30%(제품 단가별) 사업비 초과분 자부담 | F95: 163,500 | G95: 545,000 | H95: 163,500 | I95: 381,500 | J95: 163,500 | K95: 163,500 | L95: 163,500
A96: 농정과 | B96: 예천군양잠농업협동조합 | C96: 양잠산업육성 지원 | D96: 민간자본사업보조 | E96: 290,000,000원*1식*60% | F96: 208,200 | G96: 290,000 | H96: 174,000 | I96: 116,000 | J96: 174,000 | K96: 174,000 | L96: 174,000
A97: 농정과 | B97: 예천군양잠농업협동조합 | C97: 기능성 우량잠종대 지원 | D97: 민간자본사업보조 | E97: 40,000원*1,200상자*70% | F97: 33,600 | G97: 48,000 | H97: 33,600 | I97: 14,400 | J97: 33,600 | K97: 33,600 | L97: 33,600
A98: 농정과 | B98: 예천군양잠농업협동조합 | C98: 애누에 공동사육비 지원 | D98: 민간자본사업보조 | E98: 30,000원*1,600상자*100% | F98: 54,000 | G98: 96,000 | H98: 48,000 | I98: 48,000 | J98: 48,000 | K98: 48,000 | L98: 48,000
A99: 농정과 | B99: 영남엽연초생산협동조합 | C99: 엽연초 재배단지 조성 지원 | D99: 민간자본사업보조 | E99: 10,000,000원*12읍면*50* | F99: 60,000 | G99: 120,000 | H99: 60,000 | I99: 60,000 | J99: 60,000 | K99: 60,000 | L99: 60,000
A100: 농정과 | B100: 서민경 외 2명 | C100: 귀농인 빈집수리비 지원(국도비) | D100: 민간자본사업보조 | E100: 5,000,000원 * 3농가 * 80% | G100: 18,000 | H100: 12,000 | I100: 6,000 | J100: 12,000 | K100: 12,000 | L100: 12,000
A101: 농정과 | B101: 이전우 외 6명 | C101: 고추비가림재배시설 | D101: 민간자본사업보조 | E101: 20,000원 * 9,350㎡ * 50% | G101: 187,000 | H101: 93,500 | I101: 93,500 | J101: 93,500 | K101: 93,500 | L101: 93,500
A102: 농정과 | B102: 박천선 외 16명 | C102: 에너지 절감시설 설치 | D102: 민간자본사업보조 | E102: 188,588,000원 * 50%(사업단가별) | G102: 188,588 | H102: 94,294 | I102: 94,294 | J102: 94,294 | K102: 94,294 | L102: 94,294
A103: 농정과 | B103: 감천청결고추작목반 박장우 | C103: 원예특용작물 점적관수시설 지원 | D103: 민간자본사업보조 | E103: 1,755,000원 * 12개소 * 50% | G103: 21,060 | H103: 10,530 | I103: 10,530 | J103: 10,530 | K103: 10,530 | L103: 10,530
A104: 농정과 | B104: 농업회사법인 웰팜 정가영 | C104: 단호박 톤백포대 지원사업 | D104: 민간자본사업보조 | E104: 18,000원 * 2,000개 * 50% | G104: 36,000 | H104: 18,000 | I104: 18,000 | J104: 18,000 | K104: 18,000 | L104: 18,000
A105: 농정과 | B105: 국사봉 천마작목반 윤홍수 | C105: 일손절감형 농기자재 지원 (천마원목자재) | D105: 민간자본사업보조 | E105: 1,700원 * 10,400본 * 50% | G105: 17,680 | H105: 8,840 | I105: 8,840 | J105: 8,840 | K105: 8,840 | L105: 8,840
A106: 농정과 | B106: 보문학가산산수박작목반 이영배 | C106: 일손절감형 농기자재 지원 (수박받침대) | D106: 민간자본사업보조 | E106: 220원 * 142,000개 * 50% | G106: 31,240 | H106: 15,620 | I106: 15,620 | J106: 15,620 | K106: 15,620 | L106: 15,620
A107: 농정과 | B107: 보문학가산산수박작목반 이영배 | C107: 일손절감형 농기자재 지원(복토기) | D107: 민간자본사업보조 | E107: 7,000,000원 * 3대 * 50% | G107: 21,000 | H107: 10,500 | I107: 10,500 | J107: 10,500 | K107: 10,500 | L107: 10,500
A108: 농정과 | B108: 보문학가산산수박작목반 이영배 | C108: 원예특용작물 점적관수시설 지원 | D108: 민간자본사업보조 | E108: 150원 * 122,000평 * 50% 사업비초과분 자부담 | G108: 18,300 | H108: 9,150 | I108: 9,150 | J108: 9,150 | K108: 9,150 | L108: 9,150
A109: 농정과 | B109: 농업회사법인 이노진팜 김영준 | C109: 종묘삼 증식,보급기반(풍양 우망) | D109: 민간자본사업보조 | E109: 800,000,000원 * 1식 * 80% | G109: 800,000 | H109: 640,000 | I109: 160,000 | J109: 640,000 | K109: 640,000 | L109: 640,000
A110: 농정과 | B110: 이군창 외 388명 | C110: 소득작목육성지원사업 (비가림시설,저온저장고등) | D110: 민간자본사업보조 | E110: 1,977,536,000원 * 50% (사업별단가) | G110: 1,974,236 | H110: 987,118 | I110: 987,118 | J110: 987,118 | K110: 987,118 | L110: 987,118
A111: 농정과 | B111: 전연지 외 76명 | C111: 민속채소양채류생산기반확충 (시설하우스,관수관비시설 등) | D111: 민간자본사업보조 | E111: 311,584,000원 * 50% (사업별단가) | G111: 311,584 | H111: 155,792 | I111: 155,792 | J111: 155,792 | K111: 155,792 | L111: 155,792
A112: 농정과 | B112: 김국진 외 58명 | C112: 인삼약용산업육성지원사업 (해가림시설, 안개분제 등) | D112: 민간자본사업보조 | E112: 226,464,000원 * 50% (사업별단가) | G112: 452,928 | H112: 226,464 | I112: 226,464 | J112: 226,464 | K112: 226,464 | L112: 226,464
A113: 산림축산과 소계 | C113: =COUNTA(C114:C132) -> 19 | F113: =SUM(F114:F132) -> 529,327 | G113: 710,088 | H113: 467,823 | I113: 242,265 | J113: 467,823 | K113: 467,823 | L113: 467,823
A114: 산림축산과 | B114: 개포면 경서로 1400-18 손영락 외 2명 | C114: 유휴토지조림 | D114: 민간자본사업보조 | E114: 4,788,000원*1ha*90% | F114: 17,240 | G114: 4,788 | H114: 4,309 | I114: 479 | J114: 4,309 | K114: 4,309 | L114: 4,309
A115: 산림축산과 | B115: 호명면 원곡길 73-48 장사억 외 9명 | C115: 펠릿보일러 지원사업(주택용) | D115: 민간자본사업보조 | E115: 4,000,000원*10대*70% | F115: 13,997 | G115: 40,000 | H115: 28,000 | I115: 12,000 | J115: 28,000 | K115: 28,000 | L115: 28,000
A116: 산림축산과 | B116: 감천면 대맥리 684 장준영 외 4명 | C116: 내수면 양식장 기자재 지원 | D116: 민간자본사업보조 | E116: 700,000원*15대*70% | F116: 5,880 | G116: 10,500 | H116: 7,350 | I116: 3,150 | J116: 7,350 | K116: 7,350 | L116: 7,350
A117: 산림축산과 | B117: 예천읍 신리길 25-4 이재봉 외 64 | C117: 축사환기시설 지원 (송풍기 지원) | D117: 민간자본사업보조 | E117: 300,000원*90대*60% | F117: 40,000 | G117: 27,000 | H117: 16,200 | I117: 10,800 | J117: 16,200 | K117: 16,200 | L117: 16,200
A118: 산림축산과 | B118: 예천읍 나부들길 28 김진만 외 97 | C118: 한우보정용 개체잠금 장치 지원 | D118: 민간자본사업보조 | E118: 60000원*1,000두*50% | F118: 30,000 | G118: 60,000 | H118: 30,000 | I118: 30,000 | J118: 30,000 | K118: 30,000 | L118: 30,000
A119: 산림축산과 | B119: 예천읍 용산길 98 박용제 외 14 | C119: 친환경 전동운반기 지원 | D119: 민간자본사업보조 | E119: 2,000,000원*15대*60% | F119: 12,000 | G119: 30,000 | H119: 18,000 | I119: 12,000 | J119: 18,000 | K119: 18,000 | L119: 18,000
A120: 산림축산과 | B120: 보문면 보문로 680 김재훈 외 33 | C120: 한우 스트레스 완화 친환경시설 지원 | D120: 민간자본사업보조 | E120: 300,000원*185개소*70% | G120: 55,500 | H120: 38,850 | I120: 16,650 | J120: 38,850 | K120: 38,850 | L120: 38,850
A121: 산림축산과 | B121: 예천읍 양궁로 262-1 예천청년회의소 | C121: 은.붕어잡이 체험 행사비 지원 | D121: 민간행사사업보조 | E121: 60,000,000원*1식 | F121: 100,000 | G121: 60,000 | H121: 60,000 | J121: 60,000 | K121: 60,000 | L121: 60,000
A122: 산림축산과 | B122: 감천면 충효로 376-12 김경동 외 4명 | C122: 젖소능력개량사업 | D122: 민간자본사업보조 | E122: 58,000원*120두 | F122: 5,800 | G122: 6,960 | H122: 6,960 | J122: 6,960 | K122: 6,960 | L122: 6,960
A123: 산림축산과 | B123: 예천참우축제추진위원회 | C123: 예천참우 소비행사 지원사업 | D123: 민간행사사업보조 | E123: 30,000,000원*1식 | F123: 50,000 | G123: 30,000 | H123: 30,000 | J123: 30,000 | K123: 30,000 | L123: 30,000
A124: 산림축산과 | B124: 예천축산업협동조합 | C124: 축산물 소비촉진행사 지원사업 | D124: 민간행사사업보조 | E124: 10,000,000원*1식 | F124: 10,000 | G124: 10,000 | H124: 10,000 | J124: 10,000 | K124: 10,000 | L124: 10,000
A125: 산림축산과 | B125: 지보면 어신3길 15-36 윤시근 외 2명 | C125: 축산물 HACCP 컨설팅(농장) 지원사업 | D125: 민간자본사업보조 | E125: 8,000,000원*3개소*70% | F125: 22,400 | G125: 24,000 | H125: 16,800 | I125: 7,200 | J125: 16,800 | K125: 16,800 | L125: 16,800
A126: 산림축산과 | B126: 용궁면 용궁로 143 윤우상 | C126: 착유장비 현대화 지원사업 | D126: 민간자본사업보조 | E126: 50,000,000원*1대*60% | F126: 30,000 | G126: 50,000 | H126: 30,000 | I126: 20,000 | J126: 30,000 | K126: 30,000 | L126: 30,000
A127: 산림축산과 | B127: 예천읍 충효로 376-12 김경동 | C127: 원유냉각기 지원사업 | D127: 민간자본사업보조 | E127: 15,000,000원*1대*60% | F127: _ | G127: 15,000 | H127: 9,000 | I127: 6,000 | J127: 9,000 | K127: 9,000 | L127: 9,000
A128: 산림축산과 | B128: 풍양면 덕암로 1301-16 윤진섭 | C128: 착유 위생안전시설 지원사업 | D128: 민간자본사업보조 | E128: 12,000,000원*1대*60% | F128: _ | G128: 12,000 | H128: 7,200 | I128: 4,800 | J128: 7,200 | K128: 7,200 | L128: 7,200
A129: 산림축산과 | B129: 보문면 웃노트기길 13 정세민 외 4명 | C129: 유우군 검정사업 | D129: 민간자본사업보조 | E129: 2,000원*500두*70% | F129: 560 | G129: 1,000 | H129: 700 | I129: 300 | J129: 700 | K129: 700 | L129: 700
A130: 산림축산과 | B130: 예천읍 왕신길 285-4 최인수 외 447명 | C130: 축산분뇨 처리용 톱밥 지원사업 | D130: 민간자본사업보조 | E130: 3,000원*40,000포*50% | F130: 82,500 | G130: 120,000 | H130: 60,000 | I130: 60,000 | J130: 60,000 | K130: 60,000 | L130: 60,000
A131: 산림축산과 | B131: 예천읍 통명리 61 이영국 외 6명 | C131: 중규모 소독시설 지원사업 | D131: 민간자본사업보조 | E131: 3,500,000원*7대*70% | F131: 17,150 | G131: 24,500 | H131: 17,150 | I131: 7,350 | J131: 17,150 | K131: 17,150 | L131: 17,150
A132: 산림축산과 | B132: 예천읍 원고개길 67 김진국 외 21명 | C132: 돼지 써코바이러스 백신지원사업 | D132: 민간자본사업보조 | E132: 2,000원*64,420두*60% | F132: 91,800 | G132: 128,840 | H132: 77,304 | I132: 51,536 | J132: 77,304 | K132: 77,304 | L132: 77,304
A133: 건설교통과 소계 | C133: 6 | F133: 53,374 | G133: 29,955 | H133: 29,235 | I133: 720 | J133: 29,235 | K133: 29,235 | L133: 29,235
A134: 건설교통과 | B134: 예천경찰발전위원회 | C134: 교통사고 예방을 위한 안전용품 구입비 지원 | D134: 민간자본사업보조 | E134: 안전용품 지원 : 17,200 | F134: 21,650 | G134: 17,200 | H134: 17,200 | I134: - | J134: 17,200 | K134: 17,200 | L134: 17,200
A135: 건설교통과 | B135: 경북녹색어머니회예천지회 | C135: 교통안전지도 참여단체 용품구입 지원 | D135: 민간경상사업보조 | E135: 안전지도용품 지원 : 1,900 | F135: 3,100 | G135: 1,900 | H135: 1,900 | J135: 1,900 | K135: 1,900 | L135: 1,900
A136: 건설교통과 | B136: 전국모범운전자연합회 경북예천지회 | C136: 교통안전교육사업 및 예방활동 지원 | D136: 민간경상사업보조 | E136: 예방활동 지원 : 7,000 | F136: 7,000 | G136: 7,000 | H136: 7,000 | I136: - | J136: 7,000 | K136: 7,000 | L136: 7,000
A137: 건설교통과 | B137: 전국모범운전자연합회 경북예천지회 | C137: 교통안전지도 참여단체 용품구입 지원 | D137: 민간경상사업보조 | E137: 안전지도용품 지원 : 255 | F137: 3,000 | G137: 255 | H137: 255 | J137: 255 | K137: 255 | L137: 255
A138: 건설교통과 | B138: 평화택시 합명회사 | C138: 택시 영상기록장치 교체 지원 | D138: 민간자본사업보조 | E138: 영상기록장치 설치(4대) : 960 | F138: 6,720 | G138: 960 | H138: 768 | I138: 192 | J138: 768 | K138: 768 | L138: 768
A139: 건설교통과 | B139: 예천읍 대심3길 권기호 외 10명 (대상자 내역 별지) | C139: 택시 영상기록장치 교체 지원 | D139: 민간자본사업보조 | E139: 영상기록장치 설치(11대) : 2,640 | F139: 11,904 | G139: 2,640 | H139: 2,112 | I139: 528 | J139: 2,112 | K139: 2,112 | L139: 2,112
A140: 안전재난과 소계 | C140: =SUBTOTAL(103,C141:C141:C148) -> 8 | F140: =SUBTOTAL(9,F141:F141:F148) -> 56,800 | G140: =SUBTOTAL(9,G141:G141:G148) -> 67,500 | H140: =SUBTOTAL(9,H141:H141:H148) -> 66,800 | I140: =SUBTOTAL(9,I141:I141:I148) -> 700 | J140: =SUBTOTAL(9,J141:J141:J148) -> 66,800 | K140: =SUBTOTAL(9,K141:K141:K148) -> 66,800 | L140: =SUBTOTAL(9,L141:L141:L148) -> 66,800
A141: 안전재난과 | B141: 사단법인)한국아마추어무선연맹 재난통신지원예천지구단 | C141: 아마추어무선연맹 안전의날 행사 등 재난안전 활동사업 | D141: 민간경상사업보조 | E141: 물놀이 현수막 및 입간판 제작 : 2,000 군민제전 및 곤충엑스포 종사자 식대, 간 식 비 : 1,500 무전기수리 및 배터리 교체 : 500 | F141: 4,000 | G141: 4,000 | H141: 4,000 | I141: 0 | J141: 4,000 | K141: 4,000 | L141: 4,000
A142: 안전재난과 | B142: 경북일보㈜ | C142: 안전골든벨 어린이 퀴즈대회 개최 지원 | D142: 민간경상사업보조 | E142: 영상,음향,무대 및 운영 물품구입비 : 7,120 현수막 제작 및 홍보비 : 1,000 진행MC 등 인건비 : 1,600 시상 및 기타 운영비 : 980 | G142: 10,700 | H142: 10,000 | I142: 700 | J142: 10,000 | K142: 10,000 | L142: 10,000
A143: 안전재난과 | B143: 육군제320부대 2대대 | C143: 향방작전 경상비 지원 | D143: 예비군육성지원경상보조 | E143: 향방작전 경상비 : 2,160 | F143: 2,160 | G143: 2,160 | H143: 2,160 | I143: - | J143: 2,160 | K143: 2,160 | L143: 2,160
A144: 안전재난과 | B144: 육군제320부대 2대대 | C144: 예비군교육훈련 경상비 지원 | D144: 예비군육성지원경상보조 | E144: 예비군 교육훈련 : 3,240 | F144: 3,240 | G144: 3,240 | H144: 3,240 | I144: - | J144: 3,240 | K144: 3,240 | L144: 3,240
A145: 안전재난과 | B145: 육군제320부대 2대대 | C145: 예비군부대 운영비 지원 | D145: 예비군육성지원경상보조 | E145: 예비군 부대 운영비 : 5,400 | F145: 5,400 | G145: 5,400 | H145: 5,400 | I145: - | J145: 5,400 | K145: 5,400 | L145: 5,400
A146: 안전재난과 | B146: 육군제320부대 2대대 | C146: 향방작전 장비 구입 | D146: 예비군육성지원자본보조 | E146: 향방작전 장비 구입 : 20,200 | F146: 20,200 | G146: 20,200 | H146: 20,200 | I146: - | J146: 20,200 | K146: 20,200 | L146: 20,200
A147: 안전재난과 | B147: 육군제320부대 2대대 | C147: 예비군 교육훈련 장비구입 | D147: 예비군육성지원자본보조 | E147: 예비군 교육훈련 장비 : 4,040 | F147: 4,040 | G147: 4,040 | H147: 4,040 | I147: - | J147: 4,040 | K147: 4,040 | L147: 4,040
A148: 안전재난과 | B148: 육군제320부대 2대대 | C148: 예비군부대 운영 기자재 구입 | D148: 예비군육성지원자본보조 | E148: 예비군부대 운영 기자재 : 17,760 | F148: 17,760 | G148: 17,760 | H148: 17,760 | I148: - | J148: 17,760 | K148: 17,760 | L148: 17,760
A149: 도청이전지원단 소계 | C149: =SUBTOTAL(103,C150:C150:C152) -> 3 | F149: =SUBTOTAL(9,F150:F150:F152) -> 80,000 | G149: =SUBTOTAL(9,G150:G150:G152) -> 216,000 | H149: =SUBTOTAL(9,H150:H150:H152) -> 180,000 | I149: =SUBTOTAL(9,I150:I150:I152) -> 36,000 | J149: =SUBTOTAL(9,J150:J150:J152) -> 180,000 | K149: =SUBTOTAL(9,K150:K150:K152) -> 180,000 | L149: =SUBTOTAL(9,L150:L150:L152) -> 180,000
A150: 도청이전지원단 | B150: 대경문화연구원 | C150: 도민과 함께하는 신도청기행 | D150: 민간경상사업보조 | E150: 차량임차료 : 14,700 강 연 료 : 2,400 홍 보 비 : 14,000 진 행 비 : 36,000 인 건 비 : 1,600 입장 및 체험료 : 600 참가자 보험료 : 1,200 기 타 : 5,500 | F150: 40,000 | G150: 76,000 | H150: 40,000 | I150: 36,000 | J150: 40,000 | K150: 40,000 | L150: 40,000
A151: 도청이전지원단 | B151: 안동상공회의소 | C151: 신도청지역 상생발전 포럼 | D151: 민간경상사업보조 | E151: 회의비 : 2,000 교육비 : 10,000 도민한마음걷기대회 : 24,000 심포지엄 개최 : 3,000 기 타 : 1,000 | F151: 40,000 | G151: 40,000 | H151: 40,000 | J151: 40,000 | K151: 40,000 | L151: 40,000
A152: 도청이전지원단 | B152: 안동문화방송㈜ | C152: 신도청맞이 음악회 | D152: 민간행사사업보조 | E152: 출 연 료 : 65,000 홍 보 비 : 10,000 특집 프로그램 제작 및 송출 : 10,000 HD TV중계차 임대 : 8,000 기 타 : 7,000 | G152: 100,000 | H152: 100,000 | J152: 100,000 | K152: 100,000 | L152: 100,000
A153: 보건소 소계 | C153: 2 | F153: 365,000 | G153: 415,040 | H153: 415,000 | I153: 40 | J153: 415,000 | K153: 415,000 | L153: 415,000
A154: 보건소 | B154: 예천군체육단체통합추진위원회 | C154: 노인건강축제 행사 지원 | D154: 민간행사사업보조 | E154: 식 비 : 19,000 유 니 폼 : 19,200 기 념 품 : 15,200 시 상 금 : 4,600 홍 보 비 : 4,000 초청장 및 인쇄비 : 1,000 대회진행MC : 800 심 사 비 : 500 운 영 비 : 700 | F154: 65,000 | G154: 65,000 | H154: 65,000 | J154: 65,000 | K154: 65,000 | L154: 65,000
A155: 보건소 | B155: 예천권병원 | C155: 응급의료기관 운영비 지원 (예천권병원) | D155: 민간경상사업보조 | E155: 의사 인건비 : 150,000 의사당직수당 : 25,200 간호사인건비 : 174,840 | F155: 300,000 | G155: 350,040 | H155: 350,000 | I155: 40 | J155: 350,000 | K155: 350,000 | L155: 350,000
A156: 문화체육사업소 소계 | C156: =SUBTOTAL(103,C157:C197) -> 41 | F156: =SUBTOTAL(9,F157:F197) -> 556,126 | G156: 720,114 | H156: 698,114 | I156: 22,000 | J156: 698,114 | K156: 698,114 | L156: 698,114
A157: 문화체육사업소 | B157: 예천읍 충효로 395 (예천군체육회) | C157: 예천군체육회 운영비 지원 | D157: 민간단체법정운영비보조 | E157: 공공요금 : 3,600 난방용 유류구입 : 2,000 우수선수 육성 : 13,000 사무용품구입 및 일반운영비 : 6,400 | F157: 25,000 | G157: 25,000 | H157: 25,000 | I157: 0 | J157: 25,000 | K157: 25,000 | L157: 25,000
A158: 문화체육사업소 | B158: 예천읍 충효로 395 (예천군체육회) | C158: 예천군체육회 사무국장 인건비 지원 | D158: 민간단체법정운영비보조 | E158: 급여 - 1,700×7월 = 11,900 | F158: 23,800 | G158: 11,900 | H158: 11,900 | J158: 11,900 | K158: 11,900 | L158: 11,900
A159: 문화체육사업소 | B159: 예천읍 충효로 395 (예천군체육회) | C159: 에천군체육회 간사 인건비 지원 | D159: 민간단체법정운영비보조 | E159: 급여 - 1,100×7월 = 7,700 | F159: 14,000 | G159: 7,700 | H159: 7,700 | J159: 7,700 | K159: 7,700 | L159: 7,700
A160: 문화체육사업소 | B160: 예천읍 군청앞길 7-1 (예천군생활체육회) | C160: 예천군생활체육회 운영비 지원 | D160: 민간단체법정운영비보조 | E160: 사무실 임대료 : 3,600 공공요금 : 3,600 일반운영비 : 6,800 | F160: 14,000 | G160: 14,000 | H160: 14,000 | J160: 14,000 | K160: 14,000 | L160: 14,000
A161: 문화체육사업소 | B161: 예천읍 군청앞길 7-1(예천군생활체육회) | C161: 예천군생활체육회 사무국장 인건비 지원 | D161: 민간단체법정운영비보조 | E161: 급여 - 1,000×6월 = 6,000 | F161: 12,000 | G161: 6,000 | H161: 6,000 | J161: 6,000 | K161: 6,000 | L161: 6,000
A162: 문화체육사업소 | B162: 예천읍 군청앞길 7-1(예천군생활체육회) | C162: 예천군생활체육회 간사 인건비 지원 | D162: 민간단체법정운영비보조 | E162: 급여 - 1,000×7월 = 7,000 | F162: 12,000 | G162: 7,000 | H162: 7,000 | J162: 7,000 | K162: 7,000 | L162: 7,000
A163: 문화체육사업소 | B163: 예천읍 효자로 89(예천읍체육회) | C163: 읍.면체육대회 개최 지원 | D163: 민간경상사업보조 | E163: 대회 종목별 용품 구입비 - 300×4종목 = 1,200 참가자 식대 - 6×300명 = 1,800 | F163: 3,000 | G163: 3,000 | H163: 3,000 | J163: 3,000 | K163: 3,000 | L163: 3,000
A164: 문화체육사업소 | B164: 용문면 금당실길 54(용문면체육회) | C164: 읍.면체육대회 개최 지원 | D164: 민간경상사업보조 | E164: 대회 종목별 용품 구입비 - 200×4종목 = 800 참가자 식대 - 6×200명 = 1,200 | F164: 1,000 | G164: 2,000 | H164: 2,000 | J164: 2,000 | K164: 2,000 | L164: 2,000
A165: 문화체육사업소 | B165: 효자면 도효자로 1481 (효자면체육회) | C165: 읍.면체육대회 개최 지원 | D165: 민간경상사업보조 | E165: 대회 종목별 용품 구입비 - 200×4종목 = 800 참가자 식대 - 6×200명 = 1,200 | G165: 2,000 | H165: 2,000 | J165: 2,000 | K165: 2,000 | L165: 2,000
A166: 문화체육사업소 | B166: 은풍면 은풍로 88 (은풍면체육회) | C166: 읍.면체육대회 개최 지원 | D166: 민간경상사업보조 | E166: 대회 종목별 용품 구입비 - 200×4종목 = 800 참가자 식대 - 6×200명 = 1,200 | F166: 1,000 | G166: 2,000 | H166: 2,000 | J166: 2,000 | K166: 2,000 | L166: 2,000
A167: 문화체육사업소 | B167: 감천면 충효로 1389 (감천면체육회) | C167: 읍.면체육대회 개최 지원 | D167: 민간경상사업보조 | E167: 대회 종목별 용품 구입비 - 200×4종목 = 800 참가자 식대 - 6×200명 = 1,200 | F167: 1,000 | G167: 2,000 | H167: 2,000 | J167: 2,000 | K167: 2,000 | L167: 2,000
A168: 문화체육사업소 | B168: 보문면 미호길 127(보문면체육회) | C168: 읍.면체육대회 개최 지원 | D168: 민간경상사업보조 | E168: 대회 종목별 용품 구입비 - 200×4종목 = 800 참가자 식대 - 6×200명 = 1,200 | F168: 1,000 | G168: 2,000 | H168: 2,000 | J168: 2,000 | K168: 2,000 | L168: 2,000
A169: 문화체육사업소 | B169: 호명면 오천길 2 (호명면체육회) | C169: 읍.면체육대회 개최 지원 | D169: 민간경상사업보조 | E169: 대회 종목별 용품 구입비 - 200×4종목 = 800 참가자 식대 - 6×200명 = 1,200 | F169: 1,000 | G169: 2,000 | H169: 2,000 | J169: 2,000 | K169: 2,000 | L169: 2,000
A170: 문화체육사업소 | B170: 유천면 송전길 10 (유천면체육회) | C170: 읍.면체육대회 개최 지원 | D170: 민간경상사업보조 | E170: 대회 종목별 용품 구입비 - 200×4종목 = 800 참가자 식대 - 6×200명 = 1,200 | G170: 2,000 | H170: 2,000 | J170: 2,000 | K170: 2,000 | L170: 2,000
A171: 문화체육사업소 | B171: 용궁면 읍부1길 45(용궁면체육회) | C171: 읍.면체육대회 개최 지원 | D171: 민간경상사업보조 | E171: 대회 종목별 용품 구입비 - 200×4종목 = 800 참가자 식대 - 6×200명 = 1,200 | F171: 1,000 | G171: 2,000 | H171: 2,000 | J171: 2,000 | K171: 2,000 | L171: 2,000
A172: 문화체육사업소 | B172: 개포면 신음리길 28-8 (개포면체육회) | C172: 읍.면체육대회 개최 지원 | D172: 민간경상사업보조 | E172: 대회 종목별 용품 구입비 - 200×4종목 = 800 참가자 식대 - 6×200명 = 1,200 | G172: 2,000 | H172: 2,000 | J172: 2,000 | K172: 2,000 | L172: 2,000
A173: 문화체육사업소 | B173: 지보면 지보로 126-5 (지보면체육회) | C173: 읍.면체육대회 개최 지원 | D173: 민간경상사업보조 | E173: 대회 종목별 용품 구입비 - 200×4종목 = 800 참가자 식대 - 6×200명 = 1,200 | F173: 1,000 | G173: 2,000 | H173: 2,000 | J173: 2,000 | K173: 2,000 | L173: 2,000
A174: 문화체육사업소 | B174: 풍양면 삼강로 468 (풍양면체육회) | C174: 읍.면체육대회 개최 지원 | D174: 민간경상사업보조 | E174: 대회 종목별 용품 구입비 - 200×4종목 = 800 참가자 식대 - 6×200명 = 1,200 | F174: 1,000 | G174: 2,000 | H174: 2,000 | J174: 2,000 | K174: 2,000 | L174: 2,000
A175: 문화체육사업소 | B175: 예천읍 효자로 89(예천읍체육회) | C175: 제57회 군민체육대회 출전비 지원 | D175: 민간행사사업보조 | E175: 임원복 구입 - 80×100개 = 8,000 입장식 홍보물 제작 - 6,000×1식 = 6,000 참가자 식대 - 6×1,000명 = 6,000 | G175: 20,000 | H175: 20,000 | J175: 20,000 | K175: 20,000 | L175: 20,000
A176: 문화체육사업소 | B176: 용문면 금당실길 54 (용문면체육회) | C176: 제57회 군민체육대회 출전비 지원 | D176: 민간행사사업보조 | E176: 임원복 구입 - 80×70개 = 5,600 입장식 홍보물 제작 - 4,400×1식 = 4,400 | G176: 10,000 | H176: 10,000 | J176: 10,000 | K176: 10,000 | L176: 10,000
A177: 문화체육사업소 | B177: 효자면 도효자로 1481(효자면체육회) | C177: 제57회 군민체육대회 출전비 지원 | D177: 민간행사사업보조 | E177: 임원복 구입 - 80×70개 = 5,600 입장식 홍보물 제작 - 4,400×1식 = 4,400 | G177: 10,000 | H177: 10,000 | J177: 10,000 | K177: 10,000 | L177: 10,000
A178: 문화체육사업소 | B178: 은풍면 은풍로 88 (은풍면체육회) | C178: 제57회 군민체육대회 출전비 지원 | D178: 민간행사사업보조 | E178: 임원복 구입 - 80×70개 = 5,600 입장식 홍보물 제작 - 4,400×1식 = 4,400 | G178: 10,000 | H178: 10,000 | J178: 10,000 | K178: 10,000 | L178: 10,000
A179: 문화체육사업소 | B179: 감천면 충효로 1389 (감천면체육회) | C179: 제57회 군민체육대회 출전비 지원 | D179: 민간행사사업보조 | E179: 임원복 구입 - 80×70개 = 5,600 입장식 홍보물 제작 - 4,400×1식 = 4,400 | G179: 10,000 | H179: 10,000 | J179: 10,000 | K179: 10,000 | L179: 10,000
A180: 문화체육사업소 | B180: 보문면 미호길 127(보문면체육회) | C180: 제57회 군민체육대회 출전비 지원 | D180: 민간행사사업보조 | E180: 임원복 구입 - 80×70개 = 5,600 입장식 홍보물 제작 - 4,400×1식 = 4,400 | G180: 10,000 | H180: 10,000 | J180: 10,000 | K180: 10,000 | L180: 10,000
A181: 문화체육사업소 | B181: 호명면 오천길 2 (호명면체육회) | C181: 제57회 군민체육대회 출전비 지원 | D181: 민간행사사업보조 | E181: 임원복 구입 - 80×70개 = 5,600 입장식 홍보물 제작 - 4,400×1식 = 4,400 | G181: 10,000 | H181: 10,000 | J181: 10,000 | K181: 10,000 | L181: 10,000
A182: 문화체육사업소 | B182: 유천면 송전길 10 (유천면체육회) | C182: 제57회 군민체육대회 출전비 지원 | D182: 민간행사사업보조 | E182: 임원복 구입 - 80×70개 = 5,600 입장식 홍보물 제작 - 4,400×1식 = 4,400 | G182: 10,000 | H182: 10,000 | J182: 10,000 | K182: 10,000 | L182: 10,000
A183: 문화체육사업소 | B183: 용궁면 읍부1길 45 (용궁면체육회) | C183: 제57회 군민체육대회 출전비 지원 | D183: 민간행사사업보조 | E183: 임원복 구입 - 80×70개 = 5,600 입장식 홍보물 제작 - 4,400×1식 = 4,400 | G183: 10,000 | H183: 10,000 | J183: 10,000 | K183: 10,000 | L183: 10,000
A184: 문화체육사업소 | B184: 개포면 신음리길 28-8(개포면체육회) | C184: 제57회 군민체육대회 출전비 지원 | D184: 민간행사사업보조 | E184: 임원복 구입 - 80×70개 = 5,600 입장식 홍보물 제작 - 4,400×1식 = 4,400 | G184: 10,000 | H184: 10,000 | J184: 10,000 | K184: 10,000 | L184: 10,000
A185: 문화체육사업소 | B185: 지보면 지보로 126-5(지보면체육회) | C185: 제57회 군민체육대회 출전비 지원 | D185: 민간행사사업보조 | E185: 임원복 구입 - 80×70개 = 5,600 입장식 홍보물 제작 - 4,400×1식 = 4,400 | G185: 10,000 | H185: 10,000 | J185: 10,000 | K185: 10,000 | L185: 10,000
A186: 문화체육사업소 | B186: 풍양면 삼강로 468(풍양면체육회) | C186: 제57회 군민체육대회 출전비 지원 | D186: 민간행사사업보조 | E186: 임원복 구입 - 80×70개 = 5,600 입장식 홍보물 제작 - 4,400×1식 = 4,400 | G186: 10,000 | H186: 10,000 | J186: 10,000 | K186: 10,000 | L186: 10,000
A187: 문화체육사업소 | B187: 예천읍 대심1길 22 (예천군장애인협회) | C187: 경상북도 장애인체육대회 참가비 지원 | D187: 민간경상사업보조 | E187: 선수단 체육복 구입 : 4,200 버스임차료 : 1,200 식 대 : 1,080 현수막 및 홍보물 구입 : 520 | F187: 7,000 | G187: 7,000 | H187: 7,000 | J187: 7,000 | K187: 7,000 | L187: 7,000
A188: 문화체육사업소 | B188: 감천면 충효로 1078 (스타항공우주) | C188: 전국 스카이다이빙대회 개최 지원 | D188: 민간경상사업보조 | E188: 항공유 구입 : 12,000 무대설치 및 이벤트 행사 : 30,000 영상장비 임대 및 일반수용비 : 28,000 | F188: 70,000 | G188: 70,000 | H188: 70,000 | J188: 70,000 | K188: 70,000 | L188: 70,000
A189: 문화체육사업소 | B189: 예천읍 군청앞길 7-1 (예천군생활체육회) | C189: 생활체육교실 운영 지원 | D189: 민간경상사업보조 | E189: 생활체육교실 운영 - 2,403×8개종목 = 19,224 | F189: 19,224 | G189: 19,224 | H189: 19,224 | J189: 19,224 | K189: 19,224 | L189: 19,224
A190: 문화체육사업소 | B190: 예천읍 군청앞길 7-1 (예천군생활체육회) | C190: 생활체육지도자 배치 지원 | D190: 민간경상사업보조 | E190: 생활체육지도자 배치 지원 - 24,408×5명 = 122,040 | F190: 121,440 | G190: 122,040 | H190: 122,040 | J190: 122,040 | K190: 122,040 | L190: 122,040
A191: 문화체육사업소 | B191: 예천읍 군청앞길 7-1 (예천군생활체육회) | C191: 어르신체육활동 지원 | D191: 민간경상사업보조 | E191: 어르신체육활동 지원 - 24,408×5명 = 122,040 | F191: 97,152 | G191: 122,040 | H191: 122,040 | J191: 122,040 | K191: 122,040 | L191: 122,040
A192: 문화체육사업소 | B192: 예천읍 군청앞길 7-1 (예천군생활체육회) | C192: 생활체육회 지도자 피복비 지원 | D192: 민간단체법정운영비보조 | E192: 피 복 비 - 250×9명×2회 = 4,500 | F192: 4,000 | G192: 4,500 | H192: 4,500 | J192: 4,500 | K192: 4,500 | L192: 4,500
A193: 문화체육사업소 | B193: 예천읍 군청앞길 7-1 (예천군생활체육회) | C193: 체육바우처사업 지원 | D193: 민간경상사업보조 | E193: 체육바우처사업 지원 : 17,710 | F193: 17,710 | G193: 17,710 | H193: 17,710 | J193: 17,710 | K193: 17,710 | L193: 17,710
A194: 문화체육사업소 | B194: 예천읍 군청앞길 7-1 (예천군생활체육회) | C194: 생활체육지도자 교통비 지원 | D194: 민간경상사업보조 | E194: 생활체육지도자 교통비 - 100×5명×12월 = 6,000 | F194: 6,000 | G194: 6,000 | H194: 6,000 | J194: 6,000 | K194: 6,000 | L194: 6,000
A195: 문화체육사업소 | B195: 예천읍 군청앞길 7-1 (예천군생활체육회) | C195: 어르신 생활체육지도자 교통비 지원 | D195: 민간경상사업보조 | E195: 어르신 생활체육지도자 교통비 - 100×5명×12월 = 6,000 | F195: 4,800 | G195: 6,000 | H195: 6,000 | J195: 6,000 | K195: 6,000 | L195: 6,000
A196: 문화체육사업소 | B196: 예천읍 양궁장길 38 (경상북도양궁협회) | C196: 제13회 도지사기 전국 초.중학교 양궁대회 개최 지원 | D196: 민간경상사업보조 | E196: 대회 홍보비 : 3,500 대회 기념품 및 경품 : 17,000 대회 시상 : 29,200 대회 시설비 : 15,000 임원 숙박 및 식대 : 13,400 기타 대회운영비 : 1,900 | F196: 80,000 | G196: 80,000 | H196: 80,000 | J196: 80,000 | K196: 80,000 | L196: 80,000
A197: 문화체육사업소 | B197: 예천읍 양궁장길 38 (경상북도양궁협회) | C197: 경북양궁협회 운영비 보조 | D197: 민간단체법정운영비보조 | E197: 인 건 비 : 10,800 회의 및 격려 : 2,600 공공요금 : 2,400 기타 운영비 : 1,200 | F197: 17,000 | G197: 39,000 | H197: 17,000 | I197: 22,000 | J197: 17,000 | K197: 17,000 | L197: 17,000
